Workbook

Sheet Startseite
B1: Investitionsrechnung
C8: Susanne Kowalski
C10: In den Beispieltabellen dieser Musterlösung können Sie Wirtschaftlichkeitsberechnungen von geplanten Investitionsvorhaben nach unterschiedlichen Verfahren durchführen.
C11: » Hilfe | G11: » Rentabilitätsrechnung
C12: » Kostenvergleichsrechnung | G12: » Dynamische Rechnung
C13: » Gewinnvergleichsrechnung | G13: » Einnahmeüberschuss
C14: » Statische Rechnung | G14: » Amortisationsrechnung
H29: Tabelle einfügen / Startseite konfigurieren

Sheet Hilfe
C1: Anwenderhilfe für Excel
D6: » Inhaltliche Hilfe | N6: » Startseite
D7: » Technische Hilfe
D10: Inhaltliche Hilfe
D13: Dieses Tool beinhaltet verschiedene Beispiele zum Thema Investitionsrechnung.
D25: Technische Hilfe | N25: » Startseite
D27: Zum komfortablen Umgang mit diesem und anderen Excel-Tools erläutern wir hier einige Funktionen, die Sie beim Arbeiten mit Excel häufig benötigen, wie etwa die Anpassung der Startseite an Ihre persönlichen Bedürfnisse oder die Möglichkeiten der Haufe Toolbar.
D30: Startseite konfigurieren
D31: Über den Link Startseite konfigurieren gelangen Sie in ein Dialogfeld, in dem Sie alle nötigen Anpassungen der Startseite vornehmen können. Hier können Sie weitere Tabellen einfügen, diese umbenennen oder löschen. Haben Sie eine Tabelle in der Liste markiert, können Sie mithilfe der Pfeiltasten die Reihenfolge der Tabellen ändern. Diese Änderung wirkt sich sowohl auf die Darstellung auf der Startseite aus, als auch auf die Position der Tabelle im Blattregister und im Listenfeld in der Toolbar.
D35: Klicken Sie auf Speichern, werden die vorgenommenen Änderungen wirksam und Sie springen zurück zur Startseite.
D37: Wenn Sie eine Tabelle im Listenfeld ausgewählt haben, gelangen Sie über den Button Gehe zu direkt zur gewünschten Tabelle.
D39: Möchten Sie eine Tabelle umbenennen, markieren Sie diese und vergeben Sie im nebenstehenden Feld einen neuen Namen. Mithilfe des Buttons Tabelle umbenennen werden die Änderungen gespeichert.
D41: Logo auswählen
D42: Über das Feld Logo auswählen können Sie Ihr eigenes Firmenlogo auf jeder Tabellenseite einbinden. Klicken Sie auf Durchsuchen, wählen Sie die gewünschte Datei aus und importieren Sie diese mithilfe des Buttons Hochladen. Bitte beachten Sie dabei unbedingt die maximale Größe des neuen Logos. Die Datei sollte die Maße 35 px (Breite) und 84px (Höhe) nicht überschreiten. Bitte achten Sie auch darauf, dass die Datei 50 KB nicht überschreitet.
D44: Hinweis: | E44: Bitte ändern Sie die Namen der Blattregister nur über das Dialogfeld Tabelle einfügen/Startseite konfigurieren auf der Startseite. Wenn Sie die Blattregister per Doppelklick umbenennen, funktionieren die Navigationslinks der Startseite bis zu einer Aktualisierung nicht mehr).
D47: Haufe Toolbar
D48: Die Haufe Toolbar ist das zentrale Navigationselement und erleichtert Ihnen die Navigation innerhalb des Tools. Hier werden ebenfalls die wichtigsten Funktionen für die Handhabung des Tools angeboten.
D52: Mithilfe der Vor- und Zurück-Schaltflächen können Sie innerhalb der zuletzt aufgerufenen Seiten navigieren.
D53: Über das Listenfeld rufen Sie direkt die gewünschten Tabellen auf.
D54: Die wichtigsten Funktionen Speichern, Drucken, Kopieren und Einfügen werden ebenfalls zentral in der Toolbar angeboten
D57: Optionen
H59: » Gitternetz ein/aus
H60: » Zeilen- und Spaltenbeschriftung ein/aus
H61: » Blattregister ein/aus
H62: » Kopf- und Fußzeile anpassen
H63: » Zoom einstellen
D68: Gitternetz ein/aus
D69: Mit Hilfe dieses Menübefehls können Sie die Anzeige des Gitternetzes ein- und ausschalten.
D72: Zeilen- und Spaltenbeschriftung ein/aus
D73: Mit Hilfe dieses Menübefehls können Sie die Anzeige der Zeilen- und Spaltenköpfe ein- und ausschalten.
D76: Blattregister ein/aus
D77: Mit Hilfe dieses Menübefehls können Sie die Anzeige der Blattregister ein- und ausschalten.
D80: Kopf- und Fußzeile bearbeiten
D81: Über diesen Menübefehl rufen Sie einen Dialog auf, in dem Sie Ihre Kopf- und Fußzeilen einstellen können. Auf dem Reiter Eingabe Daten können Sie Angaben zur Firma, zur Abteilung und zum Autor eintragen.
D83: Auf dem Reiter Kopf- und Fußzeile anpassen können Sie auswählen, wo die gewünschten Angaben platziert werden sollen. Wählen Sie dazu den Bereich (Kopf- oder Fußzeile) aus, sowie die Platzierung (Links, Mitte oder Rechts).
D86: Damit Sie Ihre Einstellungen in der Vorschau überprüfen können, müssen Sie die Einstellungen übernehmen mithilfe des gleichnamigen Buttons. Die Schaltfläche Alle Kopf- und Fußzeilen entfernen löscht alle Eintragungen in der Kopf- und Fußzeile. Bitte beachten Sie, dass diese beiden Vorgänge etwas Zeit in Anspruch nehmen können.
D89: Zoom einstellen
D90: Mit Hilfe dieses Menübefehls können Sie den Zoom für die einzelnen Arbeitsblätter einstellen. Standardmäßig ist ein 85%-iger Zoom eingestellt, den Sie jedoch jederzeit ändern können.
D93: Hilfe
D94: Über den Hilfe-Button der Haufe Toolbar gelangen Sie auf die Hilfe-Seite, die Ihnen inhaltliche Hilfestellung bietet, sowie Hinweise zur technischen Handhabung des Tools.
D97: Hinweis
D98: Beim mehrmaligen Öffnen mit dem IE 7 oder IE 8 aus einer Online-Version heraus, erscheint die Meldung, dass dieses Tool bereits verwendet wird. Öffnen Sie es schreibgeschützt und speichern Sie es lokal auf Ihrem Rechner ab. Wenn Sie die Meldung unterbinden möchten, aktivieren Sie über Extras > Internetoptionen > Erweitert > Bei Einstellungen/Sicherheit die Option "Leeren des Ordners für temporäre Internetdateien beim Schließen des Browsers".

Sheet Kostenvergleichsrechnung
A1: Kostenvergleichsrechnung
A3: Objekt | B3: Weiherstraße | C3: Hauptplatz | D3: Bahnhofstraße | E3: Alte Birkenallee | F3: Uferweg | G3: Waldweg
A4: qm | B4: 117 | C4: 120 | D4: 105 | E4: 125 | F4: 115 | G4: 110
A5: Anschaffungskosten
A6: Objektkosten | B6: 425000 | C6: 500000 | D6: 420000 | E6: 485000 | F6: 475000 | G6: 395000
A7: Notar- und Gerichtskosten | B7: =B6*0.015 -> 6375 | C7: 7500 | D7: 6300 | E7: 7275 | F7: 7125 | G7: 5925
A8: Grunderwerbsteuer | B8: =B6*0.035 -> 14875 | C8: 17500 | D8: 14700 | E8: 16975 | F8: 16625 | G8: 13825
A9: Renovierungskosten | B9: 20000 | D9: 45000 | E9: 5000 | F9: 10000 | G9: 80000
A10: Sonstiges | B10: 2000 | D10: 5000 | E10: 2000 | G10: 5000
A11: Gesamte Anschaffungskosten | B11: =SUM(B6:B10) -> 468250 | C11: 525000 | D11: 491000 | E11: 516250 | F11: 508750 | G11: 499750
A12: Anschaffungskosten pro qm | B12: =IF(B4="",0,B11/B4) -> 4002.136752 | C12: =IF(C4="",0,C11/C4) -> 4375 | D12: 4676.190476 | E12: 4130 | F12: 4423.913043 | G12: 4543.181818
A13: Ranglistenposition | B13: =RANK(B12,$B$12:$G$12,1) -> 1 | C13: 3 | D13: 6 | E13: 2 | F13: 4 | G13: 5
A14: laufende Kosten per anno
A15: Heizung | B15: 3200 | C15: 3000 | D15: 3500 | E15: 3200 | F15: 3300 | G15: 3800
A16: Strom | B16: 2400 | C16: 2400 | D16: 2400 | E16: 2400 | F16: 2400 | G16: 2400
A17: Wasser | B17: 800 | C17: 800 | D17: 800 | E17: 800 | F17: 800 | G17: 800
A18: Hausmeister | B18: 2500 | C18: 3000 | D18: 4000 | E18: 2000 | F18: 3500 | G18: 1500
A19: Umlagen | B19: 5000 | C19: 2000 | D19: 4000 | E19: 1500 | F19: 3000 | G19: 8000
A20: Grundsteuer | B20: 2000 | C20: 2100 | D20: 2000 | E20: 2200 | F20: 2500 | G20: 1800
A21: Versicherung | B21: 1500 | C21: 1800 | D21: 1500 | E21: 1800 | F21: 1800 | G21: 1500
A22: Zinsen | B22: =B6*0.05 -> 21250 | C22: 25000 | D22: 21000 | E22: 24250 | F22: 23750 | G22: 19750
A23: Sonstiges | B23: 500 | D23: 300 | E23: 250 | F23: 400 | G23: 800
A24: Gesamte laufende Kosten | B24: =SUM(B15:B23) -> 39150 | C24: 40100 | D24: 39500 | E24: 38400 | F24: 41450 | G24: 40350
A25: laufende Kosten pro qm | B25: =IF(B4="",0,B24/B4) -> 334.6153846 | C25: 334.1666667 | D25: 376.1904762 | E25: 307.2 | F25: 360.4347826 | G25: 366.8181818
A26: Ranglistenposition | B26: =RANK(B25,$B$25:$G$25,1) -> 3 | C26: 2 | D26: 6 | E26: 1 | F26: 4 | G26: 5

Sheet Gewinnvergleichsrechnung
A1: Gewinnvergleichsrechnung
A3: Investitionsobjekt | B3: Maschine 1 | C3: Maschine 2 | D3: Maschine 3
A5: Anschaffungskosten | B5: 120000 | C5: 100000 | D5: 120000
A6: Durchschnittlicher Kapitaleinsatz | B6: =IF(B7=0,"",(B5+(B5/B7))/2) -> 66000 | C6: =IF(C7=0,"",(C5+(C5/C7))/2) -> 56250 | D6: =IF(D7=0,"",(D5+(D5/D7))/2) -> 66000
A7: Geplante Nutzungsdauer in Jahren | B7: 10 | C7: 8 | D7: 10
A8: Voraussichtliche Jahresleistung | B8: 20000 | C8: 18000 | D8: 22500
A9: Fixe Betriebskosten pro Periode | B9: 800 | C9: 300 | D9: 1500
A10: Variab.Betriebskosten/Mengeneinheit | B10: 0.42 | C10: 0.38 | D10: 0.39
A11: Erlöse pro Mengeneinheit | B11: 1.86 | C11: 1.79 | D11: 1.89
A12: Zinssatz | B12: 0.045 | C12: 0.04 | D12: 0.048
A13: Fixe Betriebskosten pro Periode | B13: =+B9 -> 800 | C13: =+C9 -> 300 | D13: =+D9 -> 1500
A14: Variable Betriebskosten pro Periode | B14: =B10*B8 -> 8400 | C14: =C10*C8 -> 6840 | D14: =D10*D8 -> 8775
A15: Abschreibungen | B15: =IF(B7=0,"",B5/B7) -> 12000 | C15: =IF(C7=0,"",C5/C7) -> 12500 | D15: =IF(D7=0,"",D5/D7) -> 12000
A16: Zinsen | B16: =IF(OR(B12=0,B6=0),0,B12*B6) -> 2970 | C16: =IF(OR(C12=0,C6=0),0,C12*C6) -> 2250 | D16: =IF(OR(D12=0,D6=0),0,D12*D6) -> 3168
A17: Durchschnittliche Gesamtkosten | B17: =SUM(B13:B16) -> 24170 | C17: =SUM(C13:C16) -> 21890 | D17: =SUM(D13:D16) -> 25443
A18: Erlöse pro Mengeneinheit | B18: =+B11 -> 1.86 | C18: =+C11 -> 1.79 | D18: =+D11 -> 1.89
A19: Erlöse pro Periode | B19: =B18*B8 -> 37200 | C19: =C18*C8 -> 32220 | D19: =D18*D8 -> 42525
A20: Gesamtgewinn pro Periode | B20: =+B19-B17 -> 13030 | C20: =+C19-C17 -> 10330 | D20: =+D19-D17 -> 17082

Sheet Rentabilitätsrechnung
A1: Rentabilitätsrechnung
A3: Investitionsobjekt | B3: Maschine | C3: Filiale
A5: Anschaffungskosten | B5: 100000 | C5: 150000
A6: Durchschnittlicher Kapitaleinsatz | B6: =IF(B7=0,"",(B5+(B5/B7))/2) -> 60000 | C6: =IF(C7=0,"",(C5+(C5/C7))/2) -> 80000 | D6: =IF(D7=0,"",(D5+(D5/D7))/2) -> 
A7: Geplante Nutzungsdauer in Jahren | B7: 5 | C7: 15
A8: Durchschnittliche Gesamtkosten | B8: 25000 | C8: 100000
A9: Erlöse pro Periode | B9: 40000 | C9: 140000
A10: Gesamtgewinn pro Periode | B10: =+B9-B8 -> 15000 | C10: =+C9-C8 -> 40000 | D10: =+D9-D8 -> 0
A11: Rentabilität | B11: =IF(B6=0,0,B10/B6) -> 0.25 | C11: =IF(C6=0,0,C10/C6) -> 0.5

Sheet StatischeRechnung
A1: Statische Investitionsrechnung
A3: Investitionsobjekt | B3: Maschine
A5: Anschaffungskosten | B5: 100000
A6: Durchschnittlicher Kapitaleinsatz | B6: =IF(B7=0,"",(B5+(B5/B7))/2) -> 55000
A7: Geplante Nutzungsdauer in Jahren | B7: 10
A8: Voraussichtliche Jahresleistung | B8: 20000
A9: Fixe Betriebskosten pro Periode | B9: 700
A10: Variab.Betriebskosten/Mengeneinheit | B10: 0.4
A11: Erlöse pro Mengeneinheit | B11: 1.86
A12: Zinssatz | B12: 0.1
A13: Kostenvergleich
A14: Fixe Betriebskosten pro Periode | B14: =+B9 -> 700 | C14: 0 | D14: 0 | E14: 0 | F14: 0 | G14: 0
A15: Variable Betriebskosten pro Periode | B15: =B10*B8 -> 8000 | C15: 0 | D15: 0 | E15: 0 | F15: 0 | G15: 0
A16: Abschreibungen | B16: =IF(B7=0,"",B5/B7) -> 10000
A17: Zinsen | B17: =IF(OR(B12=0,B6=0),0,B12*B6) -> 5500 | C17: 0 | D17: 0 | E17: 0 | F17: 0 | G17: 0
A18: Durchschnittliche Gesamtkosten | B18: =SUM(B14:B17) -> 24200 | C18: 0 | D18: 0 | E18: 0 | F18: 0 | G18: 0
A19: Stückkosten | B19: =IF(B8=0,"",B18/B8) -> 1.21
A20: Gewinnvergleich
A21: Erlöse pro Mengeneinheit | B21: =+B11 -> 1.86 | C21: 0 | D21: 0 | E21: 0 | F21: 0 | G21: 0
A22: Erlöse pro Periode | B22: =B21*B8 -> 37200 | C22: 0 | D22: 0 | E22: 0 | F22: 0 | G22: 0
A23: Gesamtgewinn pro Periode | B23: =+B22-B18 -> 13000 | C23: 0 | D23: 0 | E23: 0 | F23: 0 | G23: 0
A24: Gesamtgewinn-/-verlust der Investition | B24: =+B23*B7 -> 130000 | C24: 0 | D24: 0 | E24: 0 | F24: 0 | G24: 0

Sheet DynamischeRechnung
A1: Dynamische Investitionsrechnung
A3: Preissteigerung | B3: 0.0125
A5: Zinssatz | B5: 0.0325
B7: 2019 | C7: =B7+1 -> 2020 | D7: =+C7+1 -> 2021 | E7: 2022 | F7: 2023 | G7: 2024 | H7: 2025 | I7: 2026 | J7: 2027 | K7: 2028
A8: Anschaffungskosten | B8: 400000
A9: Abschreibung | B9: =SLN($B$8,0,10) -> 40000 | C9: 40000 | D9: 40000 | E9: 40000 | F9: 40000 | G9: 40000 | H9: 40000 | I9: 40000 | J9: 40000 | K9: 40000
A10: Energiekosten | B10: 5000 | C10: =B10*(1+$B$3) -> 5062.5 | D10: 5125.78125 | E10: 5189.853516 | F10: 5254.726685 | G10: 5320.410768 | H10: 5386.915903 | I10: 5454.252352 | J10: 5522.430506 | K10: 5591.460887
A11: Instandhaltung/Wartung | B11: 4000 | C11: =B11*(1+$B$3) -> 4050 | D11: 4100.625 | E11: 4151.882812 | F11: 4203.781348 | G11: 4256.328615 | H11: 4309.532722 | I11: 4363.401881 | J11: 4417.944405 | K11: 4473.16871
A12: Mitarbeiterschulung | B12: 15000
A13: Summe der Ausgaben der Rechnungsperiode | B13: =B10+B11+B12 -> 24000 | C13: 9112.5 | D13: 9226.40625 | E13: 9341.736328 | F13: 9458.508032 | G13: 9576.739383 | H13: 9696.448625 | I13: 9817.654233 | J13: 9940.374911 | K13: 10064.6296
A14: Entgangene Zinserträge | B14: =B49 -> 13000 | C14: =B50 -> 13422.5 | D14: =B51 -> 13858.73125 | E14: =B52 -> 14309.14002 | F14: =B53 -> 14774.18707 | G14: =B54 -> 15254.34815 | H14: =B55 -> 15750.11446 | I14: =B56 -> 16261.99318 | J14: =B57 -> 16790.50796 | K14: =B58 -> 17336.19947
A16: Einsparungen | B16: 120000 | C16: =B16*(1+$B$3) -> 121500 | D16: 123018.75 | E16: 124556.4844 | F16: 126113.4404 | G16: 127689.8584 | H16: 129285.9817 | I16: 130902.0564 | J16: 132538.3321 | K16: 134195.0613
B17: =B8*(-1) -> -400000
A18: Kapitalrückfluss | B18: =B16-B13-B14 -> 83000 | C18: 98965 | D18: 99933.6125 | E18: 100905.608 | F18: 101880.7453 | G18: 102858.7709 | H18: 103839.4186 | I18: 104822.409 | J18: 105807.4493 | K18: 106794.2322
A19: Saldo Kapitaleinsatz/-rückfluss | B19: =B18-B8 -> -317000 | C19: =B19+C18 -> -218035 | D19: -118101.3875 | E19: -17195.77947 | F19: 84684.96586 | G19: 187543.7368 | H19: 291383.1553 | I19: 396205.5644 | J19: 502013.0136 | K19: 608807.2459
A21: Interner Zins | B21: =IRR(B17:K18) -> 0.2076711731
B22: =IF(B19>=$B$8," ",IF(B19>$B$8,+B7-2001," ")) ->  | C22: =IF(B19>=$B$8," ",IF(C19>$B$8,+C7-2001," ")) ->  | J22: 26
B36: 1000 | C36: =B36*1.015 -> 1015 | D36: =C36*1.015 -> 1030.225 | E36: =D36*1.015 -> 1045.678375
B47: Zinssatz
A48: Nebenrechnung | B48: =B5 -> 0.0325
A49: =B8 -> 400000 | B49: =A49*$B$48 -> 13000 | C49: =A49+B49 -> 413000
A50: =C49 -> 413000 | B50: 13422.5 | C50: 426422.5
A51: 426422.5 | B51: 13858.73125 | C51: 440281.2313
A52: 440281.2313 | B52: 14309.14002 | C52: 454590.3713
A53: 454590.3713 | B53: 14774.18707 | C53: 469364.5583
A54: 469364.5583 | B54: 15254.34815 | C54: 484618.9065
A55: 484618.9065 | B55: 15750.11446 | C55: 500369.0209
A56: 500369.0209 | B56: 16261.99318 | C56: 516631.0141
A57: 516631.0141 | B57: 16790.50796 | C57: 533421.5221
A58: 533421.5221 | B58: 17336.19947 | C58: 550757.7215

Sheet Einnahmeüberschuss
A1: Investition: | B1: 200000
B3: Einnahmeüberschuss | D3: Kumulierter Einnahmeüberschuss
A4: 1. Jahr | B4: 50000 | D4: =+B4 -> 50000
A5: 2. Jahr | B5: 50000 | D5: =+D4+B5 -> 100000
A6: 3. Jahr | B6: 50000 | D6: 150000
A7: 4. Jahr | B7: 50000 | D7: 200000
A8: 5. Jahr | B8: 50000 | D8: 250000
A9: 6. Jahr | B9: 50000 | D9: 300000
A10: 7. Jahr | B10: 50000 | D10: 350000
A11: 8. Jahr | B11: 50000 | D11: 400000
A12: 9. Jahr | B12: 50000 | D12: 450000
A13: 10. Jahr | B13: 50000 | D13: 500000

Sheet Amortisationsrechnung
A1: Amortisationsrechnung
B2: 2019 | C2: =+B1:B2+1 -> 2020 | D2: =+C1:C2+1 -> 2021 | E2: =+D1:D2+1 -> 2022 | F2: =+E1:E2+1 -> 2023
A3: Anschaffungskosten | B3: 200000
A4: Abschreibung | B4: =SLN($B$3,0,5) -> 40000 | C4: =SLN($B$3,0,5) -> 40000 | D4: =SLN($B$3,0,5) -> 40000 | E4: =SLN($B$3,0,5) -> 40000 | F4: =SLN($B$3,0,5) -> 40000
A5: Energiekosten | B5: =12*600 -> 7200 | C5: =B5*(1+$B$19) -> 7344 | D5: 7490.88 | E5: 7640.6976 | F5: 7793.511552
A6: Instandhaltung/Wartung | B6: 4000 | C6: 4080 | D6: 4161.6 | E6: 4244.832 | F6: 4329.72864
A7: Summe der Ausgaben der Rechnungsperiode | B7: =B5+B6 -> 11200 | C7: =C5+C6 -> 11424 | D7: =D5+D6 -> 11652.48 | E7: =E5+E6 -> 11885.5296 | F7: =F5+F6 -> 12123.24019
A8: entgangene Zinserträge | B8: =Amortisationsrechnung!C27 -> 10000 | C8: =Amortisationsrechnung!C28 -> 10500 | D8: =Amortisationsrechnung!C29 -> 11025 | E8: =Amortisationsrechnung!C30 -> 11576.25 | F8: =Amortisationsrechnung!C31 -> 12155.0625
A10: Einsparungen | B10: 120000 | C10: =B10*(1+$B$19) -> 122400 | D10: =C10*(1+$B$19) -> 124848 | E10: =D10*(1+$B$19) -> 127344.96 | F10: =E10*(1+$B$19) -> 129891.8592
B11: -200000
A12: Kapitalrückfluss | B12: =B10-B7-B8 -> 98800 | C12: =C10-C7-C8 -> 100476 | D12: =D10-D7-D8 -> 102170.52 | E12: =E10-E7-E8 -> 103883.1804 | F12: =F10-F7-F8 -> 105613.5565
A13: Saldo Kapitaleinsatz/-rückfluss | B13: =B12-B3 -> -101200 | C13: =B13+C12 -> -724 | D13: =C13+D12 -> 101446.52 | E13: =D13+E12 -> 205329.7004 | F13: =E13+F12 -> 310943.2569
A15: Amortisationsdauer | B15: =MIN(C16:F16) -> 3
B16: =IF(B13>0,1," ") ->  | C16: =IF(C13>0,2," ") ->  | D16: =IF(D13>0,3," ") -> 3 | E16: =IF(E13>0,4," ") -> 4 | F16: =IF(F13>0,5," ") -> 5
A19: Preissteigerungsrate | B19: 0.02
A23: Nebenrechnung
A25: Zinssatz | B25: 0.05
A27: 1. Jahr | B27: 200000 | C27: =B27*$B$25 -> 10000 | D27: =B27+C27 -> 210000
A28: 2. Jahr | B28: =D27 -> 210000 | C28: =B28*$B$25 -> 10500 | D28: =B28+C28 -> 220500
A29: 3. Jahr | B29: =D28 -> 220500 | C29: =B29*$B$25 -> 11025 | D29: =B29+C29 -> 231525
A30: 4. Jahr | B30: =D29 -> 231525 | C30: =B30*$B$25 -> 11576.25 | D30: =B30+C30 -> 243101.25
A31: 5. Jahr | B31: =D30 -> 243101.25 | C31: =B31*$B$25 -> 12155.0625 | D31: =B31+C31 -> 255256.3125

Sheet VERLAUF (hidden)
A1: Startseite

Sheet Tabvorlage (hidden)
C1: =Startseite!B1 -> Investitionsrechnung
D6: Untertitel | J6: » Startseite

Sheet Tabelle1 (hidden)
A1: FALSE | B1: Kopfzeile | C1: FALSE | D1: FALSE | E1: FALSE
A2: FALSE | B2: Bitte wählen | C2: FALSE | D2: FALSE | E2: FALSE
A3: FALSE | B3: Bitte wählen | C3: FALSE | D3: FALSE | E3: FALSE
A4: FALSE | B4: Bitte wählen | C4: FALSE | D4: FALSE | E4: FALSE
A5: FALSE | B5: Bitte wählen | C5: FALSE | D5: FALSE | E5: FALSE
A6: FALSE | B6: Bitte wählen | C6: FALSE | D6: FALSE | E6: FALSE

Sheet ICONS (hidden)
